Workbook

Sheet RECOLECTARDATOS
B2: No. | C2: ESTUDIANTE | D2: EDAD | E2: ESTATURA | F2: GENERO MÚSICAL
B3: 1 | C3: ALCALA RAMIREZ GABRIELA HAYDEE | D3: 19 | E3: 1.53 | F3: POP
B4: 2 | C4: ANGUIANO CALDERON FATIMA LIZBETH | D4: 18 | E4: 1.63 | F4: POP
B5: 3 | C5: CEPEDA GARCIA PERLA ABIGAIL | D5: 23 | E5: 1.55 | F5: POP
B6: 4 | C6: CUADROS CALVILLO IMELDA PATRICIA | D6: 18 | E6: 1.64 | F6: REGUETON
B7: 5 | C7: DE LA GARZA SANCHEZ REGINA | D7: 17 | E7: 1.6 | F7: REGUETON
B8: 6 | C8: DOMINGUEZ FLORES JOSELYN ANDREA | D8: 19 | E8: 1.6 | F8: REGUETON
B9: 7 | C9: ESCOLASTICO RUIZ ALESSANDRA | D9: 19 | E9: 1.57 | F9: HIP HOP
B10: 8 | C10: GARCIA ESCOBEDO JENIFER JANETH | D10: 19 | E10: 1.58 | F10: REGUETON
B11: 9 | C11: GAYTAN BERMEA ANDREA | D11: 18 | E11: 1.63 | F11: REGUETON
B12: 10 | C12: GONZALEZ LOMAS LORENA ALEJANDRA | D12: 20 | E12: 1.73 | F12: ALTERNATIVO
B13: 11 | C13: GONZALEZ PALOMO DEVANI MONSERRATH | D13: 20 | E13: 1.56 | F13: POP
B14: 12 | C14: GUTIERREZ CISNEROS GABRIELA BERENICE | D14: 18 | E14: 1.53 | F14: POP
B15: 13 | C15: GUTIERREZ FONSECA TANIA MELISA | D15: 19 | E15: 1.6 | F15: POP
B16: 14 | C16: HERNANDEZ SERRANO ARELY | D16: 22 | E16: 1.6 | F16: ROCK
B17: 15 | C17: HERRERA IBARRA CLAUDIA FERNANDA | D17: 17 | E17: 1.59 | F17: ALTERNATIVO
B18: 16 | C18: HUERTA JIMENEZ MARIA FERNANDA | D18: 19 | E18: 1.64 | F18: REGUETON
B19: 17 | C19: MARTINEZ PONCE ANA PAOLA | D19: 18 | E19: 1.68 | F19: R&B
B20: 18 | C20: MONTOYA SILVA JULIA YESSENIA | D20: 23 | E20: 1.6 | F20: ALTERNATIVO
B21: 19 | C21: ONTIVEROS RODRIGUEZ MAYRA RUBY | D21: 19 | E21: 1.65 | F21: ALTERNATIVO
B22: 20 | C22: PEÑA FARIAS ANA PAOLA | D22: 18 | E22: 1.63 | F22: POP
B23: 21 | C23: RAMIREZ MEDINA YUMIKO | D23: 20 | E23: 1.67 | F23: POP
B24: 22 | C24: REALPOZO HARO RANIA ROMINA | D24: 20 | E24: 1.65 | F24: POP
B25: 23 | C25: ROCHA VICUÑA XIMENA GUADALUPE | D25: 20 | E25: 1.6 | F25: REGUETON
B26: 24 | C26: SALAS CASTILLO JOHANA VANESSA | D26: 27 | E26: 1.65 | F26: REGAE
B27: 25 | C27: SANCHEZ MONCADA ESTRELLA JANETH | D27: 18 | E27: 1.73 | F27: RAP
B28: 26 | C28: SEGOVIA LUCIO BRITANIA SCARLETT | D28: 18 | E28: 1.67 | F28: CORRIDOS
B29: 27 | C29: SERRATO MONTENEGRO ANA PAULINA | D29: 20 | E29: 1.61 | F29: POP
B30: 28 | C30: VALDEZ RIOS MONSERRATH | D30: 18 | E30: 1.68 | F30: ALTERNATIVO
C33: MODA | D33: =_xlfn.MODE.SNGL(D3:D30) -> 18 | E33: =_xlfn.MODE.SNGL(E3:E30) -> 1.6 | F33: POP
C34: MEDIANA | D34: =MEDIAN(Tabla7[EDAD]) -> 19 | E34: =MEDIAN(Tabla7[ESTATURA]) -> 1.62
C35: MEDIA ARITMETICA | D35: =AVERAGE(D3:D30) -> 19.42857143 | E35: =AVERAGE(E3:E30) -> 1.621428571

Sheet EDAD
A2: EDAD | B2: FRECUENCIA | C2: FR | D2: % | E2: Columna1
A3: 17 | B3: =COUNTIF(RECOLECTARDATOS!D3:D30,17) -> 2 | C3: =B3/28 -> 0.07142857143 | D3: =(C3*100) -> 7.142857143 | E3: =Tabla6[[#This Row],[FRECUENCIA]] -> 2
A4: 18 | B4: =COUNTIF(RECOLECTARDATOS!D3:D30,18) -> 9 | C4: 0.3214285714 | D4: 32.14285714 | E4: =Tabla6[[#This Row],[FRECUENCIA]] -> 9
A5: 19 | B5: =COUNTIF(RECOLECTARDATOS!D3:D30,19) -> 7 | C5: 0.25 | D5: 25 | E5: =Tabla6[[#This Row],[FRECUENCIA]] -> 7
A6: 20 | B6: =COUNTIF(RECOLECTARDATOS!D3:D30,20) -> 6 | C6: 0.2142857143 | D6: 21.42857143 | E6: =Tabla6[[#This Row],[FRECUENCIA]] -> 6
A7: 21 | B7: =COUNTIF(RECOLECTARDATOS!D3:D30,21) -> 0 | C7: 0 | D7: 0 | E7: =Tabla6[[#This Row],[FRECUENCIA]] -> 0
A8: 22 | B8: =COUNTIF(RECOLECTARDATOS!D3:D30,22) -> 1 | C8: 0.03571428571 | D8: 3.571428571 | E8: =Tabla6[[#This Row],[FRECUENCIA]] -> 1
A9: 23 | B9: =COUNTIF(RECOLECTARDATOS!D3:D30,23) -> 2 | C9: 0.07142857143 | D9: 7.142857143 | E9: =Tabla6[[#This Row],[FRECUENCIA]] -> 2
A10: 24 | B10: =COUNTIF(RECOLECTARDATOS!D3:D30,24) -> 0 | C10: 0 | D10: 0 | E10: =Tabla6[[#This Row],[FRECUENCIA]] -> 0
A11: 25 | B11: =COUNTIF(RECOLECTARDATOS!D3:D30,25) -> 0 | C11: 0 | D11: 0 | E11: =Tabla6[[#This Row],[FRECUENCIA]] -> 0
A12: 26 | B12: =COUNTIF(RECOLECTARDATOS!D3:D30,26) -> 0 | C12: 0 | D12: 0 | E12: =Tabla6[[#This Row],[FRECUENCIA]] -> 0
A13: 27 | B13: =COUNTIF(RECOLECTARDATOS!D3:D30,27) -> 1 | C13: 0.03571428571 | D13: 3.571428571 | E13: =Tabla6[[#This Row],[FRECUENCIA]] -> 1
A14: Total | B14: =SUM(B3:B13) -> 28 | C14: 1 | D14: 100 | E14: =Tabla6[[#This Row],[FRECUENCIA]] -> 28
A16: EDADES | B16: f | C16: fr | D16: % | E16: F2 | F16: marca de clase | G16: MC*F | H16: LI
A17: 17-19 | B17: 18 | C17: =B17/28 -> 0.6428571429 | D17: =(C17*100) -> 64.28571429 | E17: =(C17) -> 0.6428571429 | F17: =(17+19)/2 -> 18 | G17: =Tabla2[[#This Row],[marca de clase]]*(Tabla2[[#This Row],[f]]) -> 324
A18: 20-22 | B18: 7 | C18: =B18/28 -> 0.25 | D18: =(C18*100) -> 25 | E18: =(C18) -> 0.25 | F18: =(20+22)/2 -> 21 | G18: =Tabla2[[#This Row],[marca de clase]]*(Tabla2[[#This Row],[f]]) -> 147
A19: 23-25 | B19: 2 | C19: =B19/28 -> 0.07142857143 | D19: 7.142857143 | E19: =(C19) -> 0.07142857143 | F19: =(23+25)/2 -> 24 | G19: =Tabla2[[#This Row],[marca de clase]]*(Tabla2[[#This Row],[f]]) -> 48
A20: 26-28 | B20: 1 | C20: =B20/28 -> 0.03571428571 | D20: 3.571428571 | E20: =(C20) -> 0.03571428571 | F20: =(26+28)/2 -> 27 | G20: =Tabla2[[#This Row],[marca de clase]]*(Tabla2[[#This Row],[f]]) -> 27
A21: TOTAL | B21: 28 | C21: =SUM(C17:C20) -> 1 | D21: =SUM(D17:D20) -> 100 | E21: =SUM(E17:E20) -> 1 | F21: =SUM(F17:F20) -> 90 | G21: =SUM(G17:G20) -> 546
B24: datos
B25: Li | C25: 17 | E25: MEDIANA= | F25: =17+((28/2-0)/18)*2 -> 18.55555556
B26: f | C26: 18 | E26: MED. A=
B27: f-1 | C27: 0
B28: n | C28: 28 | E28: MODA= | F28: =17+((18-0)/((18-0)+(18-7)))*2 -> 18.24137931
B29: ti | C29: 2
B30: fi-1 | C30: 0
B31: fi+1 | C31: 7

Sheet ESTATURAS
A2: ESTATURA | B2: FRECUENCIA | C2: FR | D2: %
A3: 1.5-1.55 | B3: 3 | C3: =Tabla8[[#This Row],[FRECUENCIA]]/28 -> 0.1071428571 | D3: =(C3*100) -> 10.71428571
A4: 1.56-1.60 | B4: 10 | C4: =Tabla8[[#This Row],[FRECUENCIA]]/28 -> 0.3571428571 | D4: 35.71428571
A5: 1.61-1.65 | B5: 9 | C5: =Tabla8[[#This Row],[FRECUENCIA]]/28 -> 0.3214285714 | D5: 32.14285714
A6: 1.66-1.70 | B6: 4 | C6: =Tabla8[[#This Row],[FRECUENCIA]]/28 -> 0.1428571429 | D6: 14.28571429
A7: 1.71-1.75 | B7: 2 | C7: =Tabla8[[#This Row],[FRECUENCIA]]/28 -> 0.07142857143 | D7: 7.142857143
C8: =Tabla8[[#This Row],[FRECUENCIA]]/28 -> 0 | D8: 0
A9: TOTAL | B9: 28 | C9: =Tabla8[[#This Row],[FRECUENCIA]]/28 -> 1 | D9: 100
A19: ESTATURA | B19: FRECUENCIA | C19: FR | D19: % | E19: Columna1 | F19: MARCA DE CLASE | G19: MC*F | H19: FRECUENCIA ACUMULADA | I19: LI
A20: 1.53-1.56 | B20: =COUNTIFS(RECOLECTARDATOS!E3:E30,">=1.53",RECOLECTARDATOS!E3:E30,"<=1.56") -> 4 | C20: =B20/28 -> 0.1428571429 | D20: =(C20*100) -> 14.28571429 | E20: =C20 -> 0.1428571429 | F20: =(1.53+1.56)/2 -> 1.545 | G20: =Tabla1[[#This Row],[MARCA DE CLASE]]*Tabla1[[#This Row],[FRECUENCIA]] -> 6.18 | H20: =Tabla1[[#This Row],[FRECUENCIA]] -> 4 | I20: =1.53+((28/2-4)/4)*0.034 -> 1.615
A21: 1.57-1.60 | B21: =COUNTIFS(RECOLECTARDATOS!E3:E30,">=1.57",RECOLECTARDATOS!E3:E30,"<=1.60") -> 9 | C21: =(B21/28) -> 0.3214285714 | D21: =(C21*100) -> 32.14285714 | E21: =C21 -> 0.3214285714 | F21: =(1.57+1.6)/2 -> 1.585 | G21: =Tabla1[[#This Row],[MARCA DE CLASE]]*Tabla1[[#This Row],[FRECUENCIA]] -> 14.265 | H21: =H20+B21 -> 13 | I21: =1.57+((28/2-9)/9)*0.034 -> 1.588888889
A22: 1.61-1.64 | B22: =COUNTIFS(RECOLECTARDATOS!E3:E30,">=1.61",RECOLECTARDATOS!E3:E30,"<=1.64") -> 6 | C22: =(B22/28) -> 0.2142857143 | D22: 21.42857143 | E22: 0.2142857143 | F22: =(1.61+1.64)/2 -> 1.625 | G22: =Tabla1[[#This Row],[MARCA DE CLASE]]*Tabla1[[#This Row],[FRECUENCIA]] -> 9.75 | H22: =H21+Tabla1[[#This Row],[FRECUENCIA]] -> 19 | I22: =1.61+((28/2-6)/6)*0.034 -> 1.655333333
A23: 1.65-1.68 | B23: =COUNTIFS(RECOLECTARDATOS!E3:E30,">=1.65",RECOLECTARDATOS!E3:E30,"<=1.68") -> 7 | C23: =(B23/28) -> 0.25 | D23: 25 | E23: 0.25 | F23: =(1.65+1.68)/2 -> 1.665 | G23: =Tabla1[[#This Row],[MARCA DE CLASE]]*Tabla1[[#This Row],[FRECUENCIA]] -> 11.655 | H23: =H22+Tabla1[[#This Row],[FRECUENCIA]] -> 26 | I23: =1.65+((28/2-7)/7)*0.034 -> 1.684
A24: 1.69-1.72 | B24: =COUNTIFS(RECOLECTARDATOS!E3:E30,">=1.69",RECOLECTARDATOS!E3:E30,"<=1.72") -> 0 | C24: =(B24/28) -> 0 | D24: 0 | E24: 0 | F24: =(1.69+1.72)/2 -> 1.705 | G24: =Tabla1[[#This Row],[MARCA DE CLASE]]*Tabla1[[#This Row],[FRECUENCIA]] -> 0 | H24: =H23+Tabla1[[#This Row],[FRECUENCIA]] -> 26 | I24: 0
A25: 1.73-1.76 | B25: =COUNTIFS(RECOLECTARDATOS!E3:E30,">=1.73",RECOLECTARDATOS!E3:E30,"<=1.76") -> 2 | C25: =(B25/28) -> 0.07142857143 | D25: 7.142857143 | E25: 0.07142857143 | F25: =(1.73+1.76)/2 -> 1.745 | G25: =Tabla1[[#This Row],[MARCA DE CLASE]]*Tabla1[[#This Row],[FRECUENCIA]] -> 3.49 | H25: =H24+Tabla1[[#This Row],[FRECUENCIA]] -> 28 | I25: =1.73+((28/2-2)/2)*0.034 -> 1.934
A26: TOTAL | B26: 28 | C26: =SUM(C20:C25) -> 1 | D26: =SUM(D20:D25) -> 100 | E26: 1 | F26: =SUM(F20:F25) -> 9.87 | G26: =SUM(G20:G25) -> 45.34 | H26: =Tabla1[[#This Row],[FRECUENCIA]] -> 28
A28: Columna1 | B28: Columna2 | F28: DATOS | G28: .
A29: LIM SUP | B29: 1.73 | F29: MEDIA A | G29: =G26/28 -> 1.619285714 | I29: MODA: | J29: =1.53+((4-0)/((4-0)+(4-0)))*2 -> 2.53
A30: LIM INF | B30: 1.53 | F30: LI | G30: 1.53 | I30: MEDIANA: | J30: =1.53+((28/2-0)/4)*2 -> 8.53
A31: RANGO | B31: =B29-B30 -> 0.2 | F31: F-1
A32: INTERVALOS | B32: =1+(3.322*LOG(28)) -> 5.80745898 | F32: fi
A33: TI | B33: =B31/B32 -> 0.03443846968 | F33: ti | G33: 0.03443846968
F34: fi-1
F35: fi-2
F36: n

Sheet GENEROS MUSICALES
A2: GENERO MÚSICAL | B2: FRECUENCIA
A3: ROCK | B3: =COUNTIF(RECOLECTARDATOS!F3:F30, "ROCK") -> 1
A4: REGUETON | B4: =COUNTIF(RECOLECTARDATOS!F4:F31, "REGUETON") -> 7
A5: POP | B5: =COUNTIF(RECOLECTARDATOS!F3:F30, "POP") -> 10
A6: HIP HOP | B6: =COUNTIF(RECOLECTARDATOS!F3:F30, "HIP HOP") -> 1
A7: ALTERNATIVO | B7: =COUNTIF(RECOLECTARDATOS!F3:F30, "ALTERNATIVO") -> 5
A8: REGAE | B8: =COUNTIF(RECOLECTARDATOS!F3:F30, "REGAE") -> 1
A9: R&B | B9: =COUNTIF(RECOLECTARDATOS!F3:F30, "R&B") -> 1
A10: CORRIDOS | B10: =COUNTIF(RECOLECTARDATOS!F3:F30, "CORRIDOS") -> 1
A11: RAP | B11: =COUNTIF(RECOLECTARDATOS!F3:F30, "RAP") -> 1
A12: TOTAL | B12: =SUM(B3:B11) -> 28

Sheet Hoja6
A2: 1 | B2: ALCALA RAMIREZ GABRIELA HAYDEE
A3: 2 | B3: ANGUIANO CALDERON FATIMA LIZBETH
A4: 3 | B4: CEPEDA GARCIA PERLA ABIGAIL
A5: 4 | B5: CUADROS CALVILLO IMELDA PATRICIA
A6: 5 | B6: DE LA GARZA SANCHEZ REGINA
A7: 6 | B7: DOMINGUEZ FLORES JOSELYN ANDREA
A8: 7 | B8: ESCOLASTICO RUIZ ALESSANDRA
A9: 8 | B9: GARCIA ESCOBEDO JENIFER JANETH
A10: 9 | B10: GAYTAN BERMEA ANDREA
A11: 10 | B11: GONZALEZ LOMAS LORENA ALEJANDRA
A12: 11 | B12: GONZALEZ PALOMO DEVANI MONSERRATH
A13: 12 | B13: GUTIERREZ CISNEROS GABRIELA BERENICE
A14: 13 | B14: GUTIERREZ FONSECA TANIA MELISA
A15: 14 | B15: HERNANDEZ SERRANO ARELY
A16: 15 | B16: HERRERA IBARRA CLAUDIA FERNANDA
A17: 16 | B17: HUERTA JIMENEZ MARIA FERNANDA
A18: 17 | B18: MARTINEZ PONCE ANA PAOLA
A19: 18 | B19: MONTOYA SILVA JULIA YESSENIA
A20: 19 | B20: ONTIVEROS RODRIGUEZ MAYRA RUBY
A21: 20 | B21: PEÑA FARIAS ANA PAOLA
A22: 21 | B22: RAMIREZ MEDINA YUMIKO
A23: 22 | B23: REALPOZO HARO RANIA ROMINA
A24: 23 | B24: ROCHA VICUÑA XIMENA GUADALUPE
A25: 24 | B25: SALAS CASTILLO JOHANA VANESSA
A26: 25 | B26: SANCHEZ MONCADA ESTRELLA JANETH
A27: 26 | B27: SEGOVIA LUCIO BRITANIA SCARLETT
A28: 27 | B28: SERRATO MONTENEGRO ANA PAULINA
A29: 28 | B29: VALDEZ RIOS MONSERRATH

Sheet RESUMEN.
